bitfinex/quotes_SOLUSD_20251207
["timestamp","ask_amount","ask_price","bid_price","bid_amount"]
[1765128747720,8.14671164,134.65,134.6,33.40814353]
[1765128748232,8.52,134.69,134.62,9.6699911]
[1765128748233,9.22,134.68,134.62,9.6699911]
[1765128748531,18.8899911,134.68,134.62,9.6699911]
[1765128748742,9.6699911,134.67,134.61,0.5]
[1765128748907,10.3899911,134.67,134.61,0.5]
[1765128749233,10.3899911,134.66,134.6,33.40814353]
[1765128749425,7.42666171,134.65,134.6,33.40814353]
[1765128749619,8.14666171,134.65,134.6,23.73815243]
[1765128749819,0.72,134.64,134.6,23.73815243]
[1765128750439,0.72,134.64,134.6,33.40814353]
[1765128750933,9.6699911,134.62,134.54,10.3752783]
[1765128751145,26.7154524,134.64,134.55,9.6699911]
[1765128751308,16.64741913,134.64,134.59,9.6699911]
[1765128751507,0.72,134.63,134.59,9.6699911]
[1765128751708,0.72,134.63,134.58,9.6699911]
[1765128751913,10.3899911,134.63,134.56,17.80149006]
[1765128752215,0.72,134.63,134.57,9.6699911]
[1765128752414,0.72,134.63,134.56,0.7]
[1765128752415,0.72,134.62,134.56,10.3699911]
[1765128752617,0.72,134.62,134.56,17.80122407]
[1765128752927,8.14864002,134.62,134.57,7.43084059]
[1765128753230,0.72,134.62,134.57,13.69550464]
[1765128753437,0.72,134.61,134.57,7.43084059]
[1765128753632,6.98466405,134.63,134.57,7.43084059]
[1765128754031,6.98466405,134.63,134.57,13.69550464]
[1765128754032,0.72,134.63,134.57,13.69550464]
[1765128754233,7.42831674,134.62,134.57,13.69550464]
[1765128754406,7.42831674,134.62,134.57,7.43084059]
[1765128754609,0.72,134.61,134.56,6.26466405]
[1765128754923,0.72,134.61,134.57,6.26466405]
[1765128755117,0.72,134.61,134.58,16.308864]
[1765128755626,8.14894876,134.61,134.58,16.308864]
[1765128756511,6.98466405,134.6,134.54,7.43270354]
[1765128756711,0.72,134.6,134.55,6.26466405]
[1765128757215,0.72,134.6,134.55,6.96466405]
[1765128757411,8.5,134.62,134.57,6.26466405]
[1765128757623,0.72,134.61,134.58,7.43031688]
[1765128757820,53.43643198,134.68,134.58,14.39498093]
[1765128757821,8.14771756,134.64,134.58,14.39498093]
[1765128758036,6.26466405,134.63,134.58,7.43031688]
[1765128758225,8.5,134.65,134.59,6.26466405]
[1765128758226,22.91146011,134.65,134.59,6.26466405]
[1765128758428,0.72,134.64,134.58,8.13031688]
[1765128758631,6.26466405,134.63,134.58,7.43031688]
[1765128759249,0.72,134.62,134.57,8.5]
[1765128759413,6.98466405,134.62,134.57,15.93092165]
[1765128759615,8.14865945,134.62,134.57,15.93092165]
[1765128759836,0.72,134.61,134.57,15.93092165]
[1765128760043,6.98466405,134.62,134.57,15.93092165]
[1765128760249,0.72,134.62,134.57,41.4732776]
[1765128760749,14.41225178,134.64,134.57,41.4732776]
[1765128761249,0.72,134.63,134.57,41.4732776]
[1765128761828,14.41289868,134.63,134.57,40.7732776]
[1765128762553,13.690948,134.66,134.58,0.7]
[1765128762754,14.41021419,134.68,134.61,6.26466405]
[1765128762958,8.5,134.67,134.61,6.26466405]
[1765128763328,14.41021419,134.68,134.63,6.26466405]
[1765128763329,0.72,134.68,134.63,6.26466405]
[1765128763748,8.14393373,134.7,134.65,7.42666171]
[1765128764127,0.72,134.7,134.66,6.26466405]
[1765128764430,0.72,134.7,134.61,24.808864]
[1765128764431,0.72,134.69,134.64,7.42703944]
[1765128764652,0.72,134.69,134.64,13.69170349]
[1765128765151,0.72,134.69,134.65,0.5]
[1765128765338,6.98466405,134.69,134.65,0.5]
[1765128765533,6.98466405,134.69,134.61,38.50191249]
[1765128765534,6.26466405,134.68,134.61,38.50191249]
[1765128765734,7.42555877,134.67,134.61,38.50191249]
[1765128765939,8.14555877,134.67,134.61,38.50191249]
[1765128767252,8.14485213,134.69,134.63,6.26466405]
[1765128767471,7.42350072,134.71,134.65,6.26466405]
[1765128767756,7.42263207,134.73,134.68,13.68967147]
[1765128767975,25.53651906,134.76,134.69,6.26466405]
[1765128768124,27.75185501,134.76,134.69,6.26466405]
[1765128768329,0.72,134.76,134.68,26.68752598]
[1765128768633,0.72,134.75,134.69,6.26466405]
[1765128768840,6.98466405,134.75,134.68,30.69853547]
[1765128769059,6.98466405,134.75,134.68,29.99853547]
[1765128769272,0.72,134.74,134.68,23.73387142]
[1765128769567,0.72,134.74,134.69,6.26466405]
[1765128769767,8.14197009,134.74,134.69,13.6888188]
[1765128769949,8.14197009,134.74,134.69,7.42415475]
[1765128770132,8.14197009,134.74,134.65,45.61109805]
[1765128770133,6.98466405,134.73,134.66,6.26466405]
[1765128770338,6.26466405,134.71,134.65,8.48]
[1765128770566,6.98466405,134.72,134.66,7.42565813]
[1765128770763,6.26466405,134.72,134.66,0.5]
[1765128771064,6.26466405,134.7,134.64,7.42702899]
[1765128771264,6.94466405,134.71,134.65,7.42662739]
[1765128771438,0.68,134.7,134.66,7.42576124]
[1765128771759,0.68,134.71,134.66,7.42576124]
[1765128771972,0.68,134.7,134.66,7.42576124]
[1765128772360,8.10289781,134.72,134.66,13.69042529]
[1765128772565,32.24456898,134.72,134.65,6.26466405]
[1765128772728,32.24456898,134.72,134.65,23.73544008]
[1765128772729,6.94466405,134.71,134.65,23.73544008]
[1765128773154,0.68,134.7,134.65,30.00010413]
[1765128773473,8.10239504,134.73,134.67,6.26466405]
[1765128774142,7.42188239,134.74,134.68,14.38967147]
[1765128774459,7.42188239,134.74,134.69,6.26466405]
[1765128774853,7.42188239,134.74,134.68,26.68752598]
[1765128774854,8.10188239,134.74,134.68,26.68752598]
[1765128775079,8.10188239,134.74,134.68,13.68967147]
[1765128775235,6.26466405,134.71,134.64,6.26466405]
[1765128775432,6.94466405,134.73,134.66,6.26466405]
[1765128775658,6.94466405,134.73,134.63,9.18]
[1765128775659,0.68,134.73,134.67,6.26466405]
[1765128775843,6.98466405,134.73,134.66,6.26466405]
[1765128776042,14.40798719,134.72,134.66,7.4261102]
[1765128776457,8.14332314,134.72,134.66,13.69077425]
[1765128777273,7.42238181,134.73,134.67,6.96466405]
[1765128777572,8.14238181,134.73,134.67,6.96466405]
[1765128778160,6.98466405,134.75,134.69,7.42445615]
[1765128778475,6.98466405,134.74,134.69,7.42445615]
[1765128778856,0.72,134.73,134.69,7.42445615]
[1765128779360,8.14248117,134.73,134.68,7.42500742]
[1765128780544,0.72,134.73,134.68,8.12500742]
[1765128780742,0.72,134.73,134.68,14.38967147]
[1765128780938,7.42188376,134.74,134.68,32.95219003]
[1765128781166,6.26466405,134.79,134.73,6.26466405]
[1765128781346,0.72,134.8,134.74,6.26466405]
[1765128781544,0.72,134.8,134.72,8.46]
[1765128781545,32.94327859,134.83,134.76,6.26466405]
[1765128781870,7.41639864,134.84,134.78,6.26466405]
[1765128782033,6.26466405,134.82,134.77,8.46]
[1765128782237,6.26466405,134.82,134.74,0.7]
[1765128782238,6.26466405,134.81,134.74,14.72466405]
[1765128782438,7.41949844,134.78,134.74,8.46]
[1765128782856,0.72,134.77,134.74,8.46]
[1765128783069,0.72,134.77,134.73,7.42215408]
[1765128783371,6.26466405,134.76,134.7,13.68854342]
[1765128783554,6.98466405,134.75,134.69,6.26466405]
[1765128783953,0.72,134.75,134.7,6.26466405]
[1765128784469,8.14137645,134.75,134.71,7.42323682]
[1765128784972,7.42012671,134.77,134.72,6.26466405]
[1765128785260,15.44466405,134.81,134.74,6.26466405]
[1765128785434,150.0,134.92,134.77,6.26466405]
[1765128785435,6.26466405,134.83,134.77,6.26466405]
[1765128785640,7.26466404,134.91,134.79,6.26466405]
[1765128785641,15.44466405,134.85,134.79,6.26466405]
[1765128786152,6.26466405,134.83,134.76,14.72466405]
[1765128786371,0.72,134.84,134.75,16.308864]
[1765128786372,6.26466405,134.8,134.75,16.308864]
[1765128786551,7.41883205,134.8,134.75,23.7299302]
[1765128786872,8.13883205,134.8,134.75,29.99459425]
[1765128787182,0.72,134.79,134.75,16.308864]
[1765128787351,7.4178719,134.81,134.76,6.26466405]
[1765128787553,8.13746365,134.82,134.77,6.26466405]
[1765128787759,0.72,134.82,134.77,6.26466405]
[1765128788151,8.13739879,134.82,134.77,6.26466405]
[1765128788645,8.13739879,134.82,134.77,13.68420497]
[1765128788847,7.41690819,134.83,134.78,6.26466405]
[1765128789267,0.72,134.82,134.77,13.68420497]
[1765128789467,0.72,134.82,134.76,6.26466405]
[1765128789678,6.98466405,134.82,134.75,22.57352805]
[1765128789975,6.26466405,134.81,134.75,29.99449454]
[1765128790188,6.98466405,134.81,134.75,23.72983049]
[1765128790353,0.72,134.81,134.76,29.99401545]
[1765128790552,7.41839762,134.8,134.76,23.7293514]
[1765128790852,6.98466405,134.88,134.79,22.57352805]
[1765128791073,6.98466405,134.87,134.81,6.26466405]
[1765128791296,8.46,134.89,134.77,30.12638734]
[1765128791297,6.26466405,134.84,134.77,6.26466405]
[1765128791467,6.26466405,134.81,134.75,32.18982435]
[1765128791776,9.18,134.85,134.75,38.4544884]
[1765128792074,6.26466405,134.83,134.77,6.26466405]
[1765128792275,0.72,134.84,134.78,6.26466405]
[1765128792462,0.72,134.84,134.79,6.26466405]
[1765128792655,0.72,134.84,134.76,26.67196913]
[1765128792656,7.41674701,134.83,134.78,13.68383752]
[1765128793053,6.98466405,134.82,134.76,6.26466405]
[1765128793252,6.26466405,134.81,134.75,38.45454871]
[1765128793457,6.98466405,134.81,134.75,32.18988466]
[1765128793762,0.72,134.8,134.76,6.26466405]
[1765128794270,0.72,134.8,134.76,13.68483827]
[1765128794873,8.13854142,134.8,134.76,13.68483827]
[1765128795454,25.52653158,134.83,134.77,6.26466405]
[1765128795669,6.26466405,134.8,134.73,14.72466405]
[1765128795878,6.26466405,134.79,134.74,7.42169734]
[1765128796086,6.98466405,134.79,134.73,22.14676055]
[1765128796488,0.72,134.78,134.73,22.14676055]
[1765128796784,8.13971791,134.78,134.73,15.8820965]
[1765128796990,8.13971791,134.78,134.73,22.14676055]
[1765128797153,0.72,134.77,134.73,22.14676055]
[1765128797561,7.41900272,134.79,134.75,6.26466405]
[1765128797755,8.13846788,134.8,134.75,6.26466405]
[1765128797963,0.72,134.79,134.74,0.7]
[1765128798166,6.26466405,134.78,134.72,7.42261389]
[1765128798372,6.98466405,134.79,134.73,7.422023]
[1765128798878,0.72,134.78,134.73,32.24231682]
[1765128799053,7.41910629,134.79,134.74,6.96466405]
[1765128799473,8.13910629,134.79,134.74,6.96466405]
[1765128799974,0.72,134.78,134.74,7.42123986]
[1765128800783,0.72,134.78,134.75,0.5]
[1765128800981,7.41910629,134.79,134.75,0.5]
[1765128801284,0.68,134.78,134.75,0.5]
[1765128801481,0.68,134.78,134.72,27.69615306]
[1765128801776,0.68,134.78,134.73,13.68656791]
[1765128801974,7.42004897,134.77,134.73,7.42190386]
[1765128802283,0.68,134.78,134.74,6.26466405]
[1765128802581,0.68,134.78,134.72,15.88280139]
[1765128802582,8.09970632,134.78,134.72,15.88280139]
[1765128802768,8.09970632,134.78,134.71,6.26466405]
[1765128802964,8.09970632,134.78,134.72,6.26466405]
[1765128803269,14.36437037,134.78,134.72,6.26466405]
[1765128803583,6.94466405,134.77,134.71,7.42316992]
[1765128803756,6.26466405,134.76,134.7,7.42355727]
[1765128803962,8.10092978,134.76,134.71,13.68757733]
[1765128804455,0.68,134.75,134.71,13.68757733]
[1765128804656,0.68,134.76,134.72,16.308864]
[1765128804893,7.42026609,134.77,134.72,16.308864]
[1765128804894,0.68,134.75,134.72,16.308864]
[1765128805065,7.42026609,134.77,134.72,16.308864]
[1765128805278,8.10026609,134.77,134.72,23.25352805]
[1765128805689,8.10026609,134.77,134.72,22.57352805]
[1765128805895,8.10064245,134.76,134.73,0.5]
[1765128806067,14.72466405,134.78,134.73,7.92216339]
[1765128806068,7.42017382,134.77,134.73,7.92216339]
[1765128806272,8.10017382,134.77,134.73,0.5]
[1765128806475,0.68,134.76,134.73,7.92209932]
[1765128807587,7.41912217,134.79,134.74,6.94466405]
[1765128807987,7.41912217,134.79,134.74,6.26466405]
[1765128808384,7.4185708,134.8,134.75,6.94466405]
[1765128808784,0.68,134.79,134.73,32.74239314]
[1765128808984,0.68,134.79,134.73,32.24239314]
[1765128809186,0.68,134.79,134.74,6.26466405]
[1765128810097,32.91121297,134.79,134.73,7.42208412]
[1765128810302,32.91121297,134.79,134.74,7.42165475]
[1765128810505,26.64654892,134.79,134.74,7.42165475]
[1765128810698,0.68,134.78,134.74,7.42165475]
[1765128811293,0.68,134.78,134.74,13.6863188]
[1765128811477,37.0815059,134.84,134.75,6.26466405]
[1765128811692,0.68,134.81,134.76,6.26466405]
[1765128812098,16.55674701,134.83,134.78,6.26466405]
[1765128812737,8.09674701,134.83,134.78,6.94466405]
[1765128813307,8.09674701,134.83,134.79,7.41894799]
[1765128813922,0.68,134.82,134.76,6.26466405]
[1765128814114,0.68,134.82,134.77,13.68437959]
[1765128814835,17.08260144,134.84,134.78,8.09934486]
[1765128815040,8.09656447,134.84,134.79,9.66603697]
[1765128815243,0.68,134.84,134.8,9.66603697]
[1765128815415,8.46,134.85,134.81,17.08388431]
[1765128815615,10.34603697,134.87,134.81,25.96246569]
[1765128815840,5.11449563,134.86,134.81,7.41784734]
[1765128816139,4.43449563,134.85,134.8,17.08425468]
[1765128816312,4.43449563,134.84,134.8,7.41837719]
[1765128816511,4.43449563,134.84,134.79,9.66603697]
[1765128816512,0.68,134.84,134.79,17.08496915]
[1765128816845,10.34603697,134.83,134.76,25.97490097]
[1765128817147,10.34603697,134.83,134.77,17.0857154]
[1765128817360,8.46,134.84,134.78,9.66603697]
[1765128817517,10.34603697,134.85,134.79,17.08498496]
[1765128817716,8.46,134.86,134.82,9.66603697]
[1765128817944,4.42509847,134.85,134.82,9.66603697]
[1765128818121,4.42509847,134.84,134.82,9.66603697]
[1765128818316,4.43262412,134.86,134.83,9.66603697]
[1765128818549,15.87414986,134.88,134.83,10.34603697]
[1765128818713,4.44488911,134.87,134.84,0.68]
[1765128818917,4.50303501,134.91,134.86,9.66603697]
[1765128819126,0.78,134.93,134.88,9.66603697]
[1765128819336,4.53495418,134.92,134.89,9.66603697]
[1765128819538,4.53495418,134.91,134.89,17.07940055]
[1765128819742,4.53495418,134.92,134.89,17.07940055]
[1765128820248,0.1,134.93,134.91,9.66603697]
[1765128820451,0.1,134.93,134.92,9.66603697]
[1765128820653,8.19132342,134.93,134.87,9.66603697]
[1765128820827,9.66603697,134.92,134.86,24.768864]
[1765128821154,9.66603697,134.88,134.81,10.34603697]
[1765128821455,8.44,134.9,134.82,9.66603697]
[1765128821639,7.41399762,134.88,134.82,17.08304376]
[1765128822127,7.41355911,134.89,134.85,9.66603697]
[1765128822329,0.68,134.88,134.82,35.6262866]
[1765128822529,7.41234897,134.91,134.84,9.66603697]
[1765128822530,17.75838594,134.91,134.84,9.66603697]
[1765128822845,14.8295558,134.9,134.83,10.34603697]
[1765128823155,10.34603697,134.9,134.84,9.66603697]
[1765128823371,7.4118257,134.92,134.86,9.66603697]
[1765128823571,7.4118257,134.92,134.85,23.72444519]
[1765128823572,9.66603697,134.9,134.85,23.72444519]
[1765128823937,0.68,134.9,134.85,23.72444519]
[1765128824133,0.68,134.89,134.84,8.44]
[1765128824355,0.68,134.89,134.85,7.41552323]
[1765128824542,0.68,134.91,134.85,7.41552323]
[1765128824855,14.8460979,134.91,134.85,7.41552323]
[1765128825037,9.66603697,134.91,134.85,7.41552323]
[1765128825242,0.68,134.9,134.85,17.0815602]
[1765128825438,0.68,134.9,134.85,7.41552323]
[1765128825649,0.68,134.9,134.85,17.0815602]
[1765128825839,7.41221633,134.92,134.85,17.0815602]
[1765128826040,8.09221633,134.92,134.86,9.66603697]
[1765128826241,7.51130176,134.93,134.88,25.97490097]
[1765128826450,0.68,134.92,134.88,16.308864]
[1765128826849,9.66603697,134.9,134.85,7.41552323]
[1765128827245,0.68,134.89,134.84,23.72494685]
[1765128827450,0.1,134.93,134.85,9.12]
[1765128827637,0.1,134.93,134.92,7.41179958]
[1765128827850,0.1,134.93,134.92,25.51783655]
[1765128828073,0.1,134.93,134.92,26.19783655]
[1765128828567,0.1,134.93,134.92,9.66603697]
[1765128828770,0.1,134.93,134.92,17.07783655]
[1765128829070,0.1,134.93,134.92,7.41179958]
[1765128829569,0.1,134.93,134.9,42.5073273]
[1765128829771,0.1,134.93,134.92,9.66603697]
[1765128830176,0.1,134.93,134.92,10.34603697]
[1765128831076,1e-08,134.93,134.92,0.68]
[1765128831378,1e-08,134.93,134.92,18.78603697]
[1765128831681,3.52980864,134.97,134.95,16.308864]
[1765128831871,3.52980864,134.97,134.96,18.10603697]
[1765128832069,3.52980864,134.97,134.96,27.59598189]
[1765128832578,0.69,135.05,134.96,27.59598189]
[1765128832779,0.69,135.04,134.99,9.66603697]
[1765128832961,9.66603697,135.03,134.97,18.10603697]
[1765128833163,10.35603697,135.04,134.97,18.10603697]
[1765128833368,10.35603697,135.04,134.98,9.66603697]
[1765128833684,10.35603697,135.04,134.97,18.10603697]
[1765128833685,8.09576168,135.03,134.97,18.10603697]
[1765128833878,17.76179865,135.03,134.97,18.10603697]
[1765128834064,36.27620285,135.03,134.97,25.51470922]
[1765128834476,10.35603697,135.02,134.97,8.44]
[1765128834887,0.69,135.01,134.97,8.44]
[1765128835773,7.4074074,135.0,134.97,8.44]
[1765128835974,8.09693934,135.01,134.97,8.44]
[1765128836485,8.09693934,135.01,134.94,0.68]
[1765128836486,10.38603697,135.0,134.93,18.10603697]
[1765128836659,0.72,134.99,134.93,26.96805598]
[1765128836861,0.72,134.99,134.95,7.40974191]
[1765128837081,0.72,134.99,134.93,25.51675834]
[1765128837285,0.72,134.99,134.93,15.85072137]
[1765128837478,10.38603697,134.99,134.93,15.85072137]
[1765128838165,17.79449825,134.99,134.93,15.85072137]
[1765128839036,9.66603697,135.02,134.95,9.66603697]
[1765128839299,10.38603697,135.03,134.96,18.10603697]
[1765128839682,9.66603697,135.04,134.97,0.67]
[1765128839998,10.38603697,135.04,134.97,0.67]
[1765128840200,17.79134923,135.04,134.98,7.40850496]
[1765128840384,9.66603697,135.03,134.98,7.40850496]
[1765128840781,10.38603697,135.02,134.96,8.44]
[1765128840991,0.72,135.02,134.97,7.40894401]
[1765128841196,0.72,135.01,134.96,18.10603697]
[1765128841574,0.72,135.01,134.96,25.5155763]
[1765128841890,10.38603697,135.01,134.95,17.07617659]
[1765128842090,17.07394904,135.0,134.95,17.07617659]
[1765128842299,8.12791207,135.0,134.95,17.07617659]
[1765128842477,0.72,134.99,134.95,17.07617659]
[1765128842816,7.40700665,135.01,134.96,10.33603697]
[1765128843026,0.72,135.03,134.98,9.66603697]
[1765128843218,10.38603697,135.03,134.98,9.66603697]
[1765128843414,9.66603697,135.02,134.97,9.66603697]
[1765128843610,10.38603697,135.02,134.97,9.66603697]
[1765128843813,0.72,135.01,134.97,9.66603697]
[1765128844204,0.72,135.01,134.97,17.07502249]
[1765128844529,17.79304702,135.01,134.96,0.5]
[1765128844902,0.72,135.0,134.95,18.10603697]
[1765128845333,0.72,135.0,134.96,9.66603697]
[1765128845529,0.72,135.0,134.96,17.07519381]
[1765128845820,7.40701005,135.01,134.97,9.66603697]
[1765128846017,8.12701005,135.01,134.97,9.66603697]
[1765128846204,8.12701005,135.01,134.97,17.07485194]
[1765128846405,0.72,135.01,134.97,17.07485194]
[1765128846614,0.72,135.0,134.96,9.66603697]
[1765128846826,26.7603037,135.01,134.96,9.66603697]
[1765128847203,17.09426673,135.01,134.95,8.44]
[1765128847419,17.09426673,135.01,134.94,9.66603697]
[1765128847420,9.66603697,135.0,134.94,9.66603697]
[1765128847621,9.66603697,134.99,134.94,9.66603697]
[1765128847817,9.66603697,134.97,134.92,8.44]
[1765128848015,8.44,134.99,134.92,18.10603697]
[1765128848206,9.66603697,134.97,134.92,18.10603697]
[1765128848405,9.66603697,134.97,134.92,8.44]
[1765128848618,25.92976736,134.98,134.93,9.66603697]
[1765128848925,0.72,134.98,134.94,9.66603697]
[1765128849129,9.66603697,135.01,134.96,9.66603697]
[1765128849324,10.38603697,135.01,134.96,9.66603697]
[1765128849504,0.72,135.0,134.96,9.66603697]
[1765128850323,9.66603697,134.97,134.92,9.66603697]
[1765128850634,9.66603697,134.96,134.91,17.07834368]
[1765128850834,8.44,134.98,134.92,17.07765711]
[1765128851050,9.66603697,134.94,134.88,11.29110904]
[1765128851207,9.66603697,134.93,134.88,9.66603697]
[1765128851532,9.66603697,134.94,134.89,9.66603697]
[1765128851742,0.72,134.97,134.89,28.19946174]
[1765128851911,10.38603697,134.97,134.9,0.67]
[1765128852112,8.12956233,134.97,134.92,7.41163085]
[1765128852312,0.72,134.96,134.92,17.07782581]
[1765128852623,8.1279772,134.99,134.95,9.66603697]
[1765128853130,0.72,134.98,134.92,7.41178884]
[1765128853300,10.38603697,134.98,134.92,17.07782581]
[1765128853506,10.38603697,135.0,134.95,9.66603697]
[1765128853802,10.38603697,134.99,134.94,9.66603697]
[1765128854412,8.12850496,134.98,134.94,9.66603697]
[1765128854722,8.12850496,134.98,134.94,17.07666512]
[1765128854916,0.72,134.97,134.93,17.57711597]
[1765128855308,0.72,134.97,134.94,17.07673486]
[1765128855504,0.72,134.97,134.91,27.63993628]
[1765128855505,0.72,134.97,134.91,19.19993628]
[1765128855733,0.72,134.97,134.93,9.66603697]
[1765128855931,10.38603697,134.97,134.92,9.66603697]
[1765128856130,10.38603697,134.97,134.92,17.07774707]
[1765128856313,0.72,134.96,134.93,7.4108864]
[1765128856520,0.72,134.96,134.93,9.66603697]
[1765128856718,0.72,134.96,134.91,18.53085595]
[1765128856719,10.38603697,134.96,134.91,17.07825893]
[1765128857024,4.53218843,134.95,134.92,9.66603697]
[1765128857208,0.72,134.95,134.92,9.66603697]
[1765128857412,4.56852126,134.96,134.92,17.0777958]
[1765128857612,5.28852126,134.96,134.92,17.0777958]
[1765128857833,0.72,134.95,134.93,9.66603697]
[1765128858024,0.72,134.96,134.93,9.66603697]
[1765128858224,5.30375198,134.96,134.93,9.66603697]
[1765128858543,9.66603697,134.94,134.89,9.66603697]
[1765128858725,4.52306419,134.93,134.89,17.07943716]
[1765128858930,10.38603697,134.93,134.89,7.41340019]
[1765128859231,0.72,134.92,134.89,7.41340019]
[1765128859418,0.72,134.95,134.89,17.74943716]
[1765128859616,14.18959003,134.94,134.87,53.02630467]
[1765128859823,9.66603697,134.91,134.86,17.08068442]
[1765128860033,9.66603697,134.92,134.87,17.08030978]
[1765128860238,0.72,134.94,134.89,9.66603697]
[1765128860439,4.52637729,134.93,134.89,9.66603697]
[1765128860643,17.79726963,134.94,134.89,9.66603697]
[1765128860644,8.13123266,134.94,134.9,9.66603697]
[1765128860841,5.20628241,134.93,134.9,9.66603697]
[1765128861022,17.07637147,134.95,134.9,9.66603697]
[1765128861226,7.40974065,134.96,134.92,9.66603697]
[1765128861429,0.68,134.95,134.89,0.7]
[1765128861730,4.54733234,134.94,134.89,9.66603697]
[1765128861929,4.54733234,134.93,134.89,9.66603697]
[1765128862155,37.02928831,135.03,134.92,9.66603697]
[1765128862336,7.4069796,135.01,134.96,9.66603697]
[1765128862541,4.55109641,135.0,134.97,9.66603697]
[1765128862739,4.55109641,134.99,134.97,9.66603697]
[1765128862949,0.68,135.0,134.97,9.66603697]
[1765128863153,4.65271136,134.99,134.97,9.66603697]
[1765128863466,10.34603697,135.03,134.98,9.66603697]
[1765128863754,4.66098808,135.02,134.99,9.66603697]
[1765128863928,4.66098808,135.01,134.98,9.66603697]
[1765128864130,4.66098808,135.0,134.98,9.66603697]
[1765128864357,0.68,135.01,134.98,9.66603697]
[1765128864541,0.68,135.04,134.99,0.7]
[1765128864730,4.71621123,135.03,135.0,9.66603697]
[1765128864936,4.71621123,135.02,135.0,9.66603697]
[1765128865238,0.68,135.04,135.01,9.66603697]
[1765128865455,4.71560754,135.03,134.99,0.7]
[1765128865652,4.75708549,135.08,135.02,9.66603697]
[1765128865853,0.68,135.12,135.04,16.308864]
[1765128866052,4.82629366,135.11,135.05,9.14]
[1765128866247,4.82629366,135.1,135.05,9.14]
[1765128866447,0.68,135.12,135.06,7.40411668]
[1765128866760,4.86244545,135.11,135.06,26.6144084]
[1765128867068,8.08105642,135.12,135.06,8.10411668]
[1765128867276,4.85220777,135.11,135.07,0.7]
[1765128867571,4.86305964,135.12,135.09,9.66603697]
[1765128867771,10.34603697,135.14,135.09,9.66603697]
[1765128867959,4.87527158,135.13,135.1,9.66603697]
[1765128868161,4.87527158,135.12,135.1,0.7]
[1765128868366,0.1,135.15,135.12,7.40082889]
[1765128868563,0.1,135.15,135.14,9.66603697]
[1765128868767,0.1,135.15,135.12,7.40082889]
[1765128868969,0.1,135.15,135.12,17.06686586]
[1765128869271,0.1,135.15,135.14,25.97490097]
[1765128869949,0.1,135.15,135.13,9.66603697]
[1765128870151,0.1,135.15,135.12,16.308864]
[1765128870357,7.39590266,135.21,135.14,17.06543686]
[1765128870564,9.66603697,135.18,135.12,16.308864]
[1765128870762,9.66603697,135.16,135.09,9.66603697]
[1765128870966,9.66603697,135.16,135.1,7.40167169]
[1765128871167,9.66603697,135.17,135.09,19.185082]
[1765128871476,9.66603697,135.17,135.11,7.40093803]
[1765128871679,9.66603697,135.15,135.09,7.40200215]
[1765128871973,9.66603697,135.14,135.05,9.66603697]
[1765128872269,9.66603697,135.12,135.06,7.40411668]
[1765128872467,9.66603697,135.12,135.04,26.95198358]
[1765128872468,7.40091695,135.12,135.04,26.95198358]
[1765128872673,10.34603697,135.11,135.04,27.63198358]
[1765128872971,0.68,135.12,135.05,36.26216991]
[1765128873361,9.66603697,135.15,135.08,16.308864]
[1765128873670,8.07809129,135.17,135.08,16.308864]
[1765128873671,9.66603697,135.16,135.08,16.308864]
[1765128873858,0.68,135.16,135.08,26.65490097]
[1765128874062,0.68,135.19,135.12,16.308864]
[1765128874261,0.68,135.22,135.14,9.66603697]
[1765128874562,9.66603697,135.23,135.16,9.66603697]
[1765128874764,6.2085356,135.23,135.16,6.2085356]
[1765128874955,22.72291099,135.24,135.16,6.8885356]
[1765128875147,22.72291099,135.24,135.16,0.68]
[1765128875350,6.2085356,135.2,135.14,7.39963436]
[1765128875770,0.68,135.21,135.14,26.57896838]
[1765128875976,6.8885356,135.23,135.15,0.68]
[1765128876164,6.2085356,135.22,135.15,6.8885356]
[1765128876359,6.2085356,135.22,135.15,0.68]
[1765128876360,6.8885356,135.22,135.15,0.68]
[1765128876562,15.81432259,135.24,135.17,16.308864]
[1765128876763,14.6285356,135.24,135.17,16.308864]
[1765128877080,0.68,135.23,135.16,7.39863865]
[1765128877258,6.2085356,135.22,135.16,7.39863865]
[1765128877673,6.2085356,135.21,135.14,41.69661214]
[1765128877869,0.68,135.22,135.14,25.38774814]
[1765128878170,6.2085356,135.21,135.13,14.6485356]
[1765128878368,6.2085356,135.2,135.13,15.84024888]